fUST/lending_fUST_20250929
["ID","MTS","AMOUNT","RATE_DAILY","PERIOD"]
[388397116,1759155038148,-208.1,0.0002509,3]
[388397117,1759155038159,-624.33,0.0002509,3]
[388397118,1759155038170,-7817.22432982,0.0002509,2]
[388397119,1759155038182,-61881.09592308,0.0002509,2]
[388397120,1759155038193,-1598.5928227,0.0002509,2]
[388397121,1759155038202,-687.12,0.00025097,2]
[388397122,1759155038212,-1086.36,0.00025097,2]
[388397123,1759155038222,-1608.21,0.00025097,2]
[388397124,1759155038232,-916.16,0.00025097,2]
[388397125,1759155038241,-3424.47,0.00025097,2]
[388397126,1759155038251,-480.0,0.00025097,2]
[388397127,1759155038261,-480.0,0.00025097,2]
[388397128,1759155038271,-6124.65,0.00025097,2]
[388397129,1759155038280,-480.0,0.00025097,2]
[388397130,1759155038290,-480.0,0.00025097,2]
[388397131,1759155038301,-733.47,0.00025097,2]
[388397132,1759155038311,-480.0,0.00025097,2]
[388397133,1759155038321,-480.0,0.00025097,2]
[388397134,1759155038330,-5926.74,0.00025097,2]
[388397135,1759155038340,-480.0,0.00025097,2]
[388397136,1759155038350,-1576.7,0.00025097,2]
[388397137,1759155038360,-738.61,0.00025097,2]
[388397138,1759155038370,-480.0,0.00025097,2]
[388397139,1759155038379,-618.59,0.00025097,2]
[388397140,1759155038389,-480.0,0.00025097,2]
[388397141,1759155038399,-696.98,0.00025097,2]
[388397142,1759155038408,-2366.21,0.00025097,2]
[388397143,1759155038419,-480.0,0.00025097,2]
[388397144,1759155038430,-480.0,0.00025097,2]
[388397145,1759155038439,-480.0,0.00025097,2]
[388397146,1759155038449,-480.0,0.00025098,2]
[388397147,1759155038460,-1005.76,0.00025098,2]
[388397148,1759155038470,-212.38,0.00025098,2]
[388397149,1759155038479,-480.0,0.00025098,2]
[388397150,1759155038489,-500.0,0.00025099,2]
[388397151,1759155038499,-480.0,0.00025099,2]
[388397152,1759155038509,-480.0,0.00025099,2]
[388397153,1759155038518,-480.0,0.00025099,2]
[388397154,1759155038528,-480.0,0.00025099,2]
[388397155,1759155038538,-606.62,0.00025099,2]
[388397156,1759155038548,-102770.5593431,0.000251,2]
[388397157,1759155038559,-500.0,0.000251,5]
[388397158,1759155038770,-200.0,0.00025114,10]
[388397159,1759155038787,-34849.1601264,0.00025114,2]
[388397160,1759155038797,-1598.5928227,0.00025114,2]
[388397161,1759155038808,-480.0,0.00025124,2]
[388397162,1759155038818,-480.0,0.00025124,2]
[388397163,1759155038828,-402.01044459,0.00025124,2]
[388397164,1759155038837,-480.0,0.00025124,2]
[388397165,1759155038847,-493.75,0.00025124,2]
[388397166,1759155038858,-624.08,0.00025124,2]
[388397167,1759155038868,-480.0,0.00025124,2]
[388397168,1759155038879,-480.0,0.00025124,2]
[388397169,1759155038889,-3409.94,0.00025124,2]
[388397170,1759155038898,-1162.51,0.00025124,2]
[388397171,1759155038908,-2834.19,0.00025124,2]
[388397172,1759155038918,-599.7,0.00025124,2]
[388397173,1759155038928,-480.0,0.00025124,2]
[388397174,1759155038937,-480.0,0.00025124,2]
[388397175,1759155038947,-480.0,0.00025124,2]
[388397176,1759155038957,-1341.02,0.00025124,2]
[388397177,1759155038967,-480.0,0.00025124,2]
[388397178,1759155038977,-921.32,0.00025124,2]
[388397179,1759155038987,-1793.43,0.00025124,2]
[388397181,1759155038997,-1525.53,0.00025124,2]
[388397183,1759155039006,-480.0,0.00025124,2]
[388397185,1759155039016,-908.48,0.00025124,2]
[388397187,1759155039026,-704.97,0.00025124,2]
[388397188,1759155039035,-2539.22,0.00025124,2]
[388397189,1759155039044,-634.43,0.00025124,2]
[388397191,1759155039055,-2909.95,0.00025124,2]
[388397193,1759155039064,-480.0,0.00025124,2]
[388397195,1759155039074,-760.56,0.00025124,2]
[388397196,1759155039084,-1121.03,0.00025124,2]
[388397198,1759155039093,-832.5,0.00025124,2]
[388397200,1759155039102,-640.43,0.00025124,2]
[388397202,1759155039111,-480.0,0.00025124,2]
[388397203,1759155039121,-1967.48,0.00025124,2]
[388397204,1759155039131,-480.0,0.00025124,2]
[388397205,1759155039141,-480.0,0.00025124,2]
[388397206,1759155039152,-1867.3,0.00025124,2]
[388397207,1759155039162,-11404.06,0.00025124,2]
[388397208,1759155039172,-737.11,0.00025124,2]
[388397209,1759155039182,-480.0,0.00025124,2]
[388397210,1759155039192,-500.0,0.00025173,2]
[388397211,1759155039202,-500.0,0.00025173,2]
[388397212,1759155039211,-500.0,0.00025173,2]
[388397213,1759155039221,-500.0,0.00025173,2]
[388397214,1759155039231,-500.0,0.00025173,2]
[388397215,1759155039241,-566.58127562,0.00025173,2]
[388397216,1759155039251,-500.0,0.00025173,2]
[388397217,1759155039260,-329.02119291,0.00025173,2]
[388397218,1759155039271,-500.0,0.00025173,2]
[388397219,1759155039280,-500.0,0.00025173,2]
[388397221,1759155039290,-500.0,0.00025173,2]
[388397222,1759155039302,-500.0,0.00025173,2]
[388397223,1759155039312,-313.76434525,0.00025173,2]
[388397522,1759155043115,861.12618978,0.00024997,2]
[388397524,1759155043131,-628.26337306,0.00025026,2]
[388397526,1759155043143,-628.26337306,0.00025056,2]
[388397528,1759155043154,-628.26337306,0.00025085,2]
[388397530,1759155043166,-500.0,0.00025087,2]
[388397533,1759155043178,-500.0,0.00025087,2]
[388397536,1759155043190,-500.0,0.00025087,2]
[388397540,1759155043203,-500.0,0.00025087,2]
[388397543,1759155043214,-500.0,0.00025087,2]
[388397548,1759155043226,-500.0,0.00025087,2]
[388397552,1759155043237,-500.0,0.00025087,2]
[388397556,1759155043248,-500.0,0.00025087,2]
[388397559,1759155043260,-500.0,0.00025087,2]
[388397561,1759155043271,-500.0,0.00025087,2]
[388397563,1759155043284,-500.0,0.00025087,2]
[388397566,1759155043296,-500.0,0.00025087,2]
[388397568,1759155043309,-500.0,0.00025087,2]
[388397570,1759155043320,-500.0,0.00025087,2]
[388397573,1759155043332,-500.0,0.00025087,2]
[388397575,1759155043343,-500.0,0.00025087,2]
[388397577,1759155043354,-500.0,0.00025087,2]
[388397579,1759155043366,-500.0,0.00025087,2]
[388397581,1759155043377,-500.0,0.00025087,2]
[388397583,1759155043389,-500.0,0.00025087,2]
[388397585,1759155043400,-500.0,0.00025087,2]
[388397587,1759155043411,-500.0,0.00025087,2]
[388397589,1759155043423,-500.0,0.00025087,2]
[388397591,1759155043435,-500.0,0.00025087,2]
[388397594,1759155043446,-500.0,0.00025087,2]
[388397596,1759155043457,-500.0,0.00025087,2]
[388397598,1759155043469,-500.0,0.00025087,2]
[388397599,1759155043480,-500.0,0.00025087,2]
[388397600,1759155043491,-500.0,0.00025087,2]
[388397602,1759155043503,-239.11076392,0.00025087,2]
[388397603,1759155043514,-500.0,0.00025087,2]
[388397604,1759155043526,-576.64017952,0.00025087,2]
[388397606,1759155043537,-500.0,0.00025087,2]
[388397607,1759155043548,-500.0,0.00025087,2]
[388397609,1759155043561,-500.0,0.00025087,2]
[388397610,1759155043573,-500.0,0.00025087,2]
[388397612,1759155043585,-500.0,0.00025087,2]
[388397613,1759155043596,-500.0,0.00025087,2]
[388397615,1759155043607,-500.0,0.00025087,2]
[388397616,1759155043619,-484.98549222,0.00025087,2]
[388397618,1759155043631,-500.0,0.00025087,2]
[388397619,1759155043642,-500.0,0.00025087,2]
[388397621,1759155043658,-500.0,0.00025087,2]
[388397622,1759155043669,-548.49913358,0.00025087,2]
[388397624,1759155043680,-500.0,0.00025087,2]
[388397625,1759155043692,-500.0,0.00025087,2]
[388397627,1759155043703,-500.0,0.00025087,2]
[388397628,1759155043714,-500.0,0.00025087,2]
[388397630,1759155043727,-500.0,0.00025087,2]
[388397631,1759155043739,-500.0,0.00025087,2]
[388397632,1759155043750,-500.0,0.00025087,2]
[388397634,1759155043762,-500.0,0.00025087,2]
[388397635,1759155043774,-500.0,0.00025087,2]
[388397637,1759155043785,-500.0,0.00025087,2]
[388397638,1759155043797,-500.0,0.00025087,2]
[388397640,1759155043811,-500.0,0.00025087,2]
[388397642,1759155043823,-500.0,0.00025087,2]
[388397643,1759155043834,-500.0,0.00025087,2]
[388397645,1759155043846,-500.0,0.00025087,2]
[388397646,1759155043857,-500.0,0.00025087,2]
[388397647,1759155043870,-500.0,0.00025087,2]
[388397649,1759155043881,-500.0,0.00025087,2]
[388397650,1759155043892,-500.0,0.00025087,2]
[388397651,1759155043904,-500.0,0.00025087,2]
[388397652,1759155043912,-500.0,0.00025087,2]
[388397654,1759155043921,-500.0,0.00025087,2]
[388397655,1759155043930,-500.0,0.00025087,2]
[388397656,1759155043937,-500.0,0.00025087,2]
[388397658,1759155043945,-500.0,0.00025087,2]
[388397659,1759155043953,-500.0,0.00025087,2]
[388397660,1759155043960,-500.0,0.00025087,2]
[388397661,1759155043967,-500.0,0.00025087,2]
[388397662,1759155043975,-500.0,0.00025087,2]
[388397664,1759155043981,-500.0,0.00025087,2]
[388397665,1759155043990,-500.0,0.00025087,2]
[388397666,1759155043998,-500.0,0.00025087,2]
[388397667,1759155044006,-500.0,0.00025087,2]
[388397669,1759155044016,-500.0,0.00025087,2]
[388397670,1759155044026,-500.0,0.00025087,2]
[388397671,1759155044035,-500.0,0.00025087,2]
[388397672,1759155044044,-500.0,0.00025087,2]
[388397673,1759155044055,-215.98590839,0.00025087,2]
[388397674,1759155044065,-500.0,0.00025087,2]
[388397675,1759155044076,-500.0,0.00025087,2]
[388397686,1759155044396,-500.0,0.00025087,2]
[388397688,1759155044423,-500.0,0.00025087,2]
[388397689,1759155044438,-500.0,0.00025087,2]
[388397691,1759155044448,-500.0,0.00025087,2]
[388397692,1759155044457,-500.0,0.00025087,2]
[388397693,1759155044467,-500.0,0.00025087,2]
[388397695,1759155044476,-500.0,0.00025087,2]
[388397696,1759155044485,-500.0,0.00025087,2]
[388397697,1759155044495,-500.0,0.00025087,2]
[388397699,1759155044505,-500.0,0.00025087,2]
[388397700,1759155044514,-500.0,0.00025087,2]
[388397702,1759155044524,-500.0,0.00025087,2]
[388397703,1759155044534,-628.23729543,0.00025087,2]
[388397704,1759155044543,-500.0,0.00025087,2]
[388397705,1759155044554,-500.0,0.00025087,2]
[388397707,1759155044564,-340.16435816,0.00025087,2]
[388397708,1759155044574,-500.0,0.00025087,2]
[388397709,1759155044583,-500.0,0.00025087,2]
[388397710,1759155044592,-500.0,0.00025087,2]
[388397712,1759155044602,-500.0,0.00025087,2]
[388397713,1759155044611,-500.0,0.00025087,2]
[388397714,1759155044620,-234.43649287,0.00025087,2]
[388397715,1759155044630,-632.75,0.00025097,2]
[388397717,1759155044639,-186.23565475,0.00025173,2]
[388397718,1759155044653,-500.0,0.00025173,2]
[388397719,1759155044662,-500.0,0.00025173,2]
[388397721,1759155044672,-500.0,0.00025173,2]
[388397722,1759155044681,-500.0,0.00025173,2]
[388397723,1759155044690,-500.0,0.00025173,2]
[388397725,1759155044700,-500.0,0.00025173,2]
[388397726,1759155044709,-500.0,0.00025173,2]
[388397727,1759155044718,-500.0,0.00025173,2]
[388397729,1759155044727,-500.0,0.00025173,2]
[388397730,1759155044736,-500.0,0.00025173,2]
[388397731,1759155044745,-500.0,0.00025173,2]
[388397733,1759155044755,-467.93186595,0.00025173,2]
[388397734,1759155044765,-500.0,0.00025173,2]
[388397735,1759155044774,-500.0,0.00025173,2]
[388397737,1759155044783,-500.0,0.00025173,2]
[388397738,1759155044792,-500.0,0.00025173,2]
[388397739,1759155044804,-500.0,0.00025173,2]
[388397741,1759155044813,-500.0,0.00025173,2]
[388397742,1759155044822,-500.0,0.00025173,2]
[388397743,1759155044831,-500.0,0.00025173,2]
[388397745,1759155044840,-1598.5928227,0.00025179,2]
[388397746,1759155044849,-293.0,0.00025182,2]
[388397747,1759155044859,-1000.0,0.00025184,2]
[388397749,1759155044868,-151.0,0.00025184,2]
[388397750,1759155044878,-1000.0,0.00025184,2]
[388397752,1759155044888,-1000.0,0.00025184,2]
[388397753,1759155044897,-1000.0,0.00025184,2]
[388397755,1759155044907,-168.54627796,0.00025184,2]
[388397756,1759155044916,-1000.0,0.00025184,2]
[388397757,1759155044926,-1000.0,0.00025184,2]
[388397759,1759155044935,-1000.0,0.00025184,2]
[388397760,1759155044944,-151.0,0.00025184,2]
[388397761,1759155044953,-1000.0,0.00025184,2]
[388397763,1759155044963,-151.0,0.00025184,2]
[388397764,1759155044972,-1000.0,0.00025184,2]
[388397766,1759155044981,-153.83490903,0.00025184,2]
[388397767,1759155044991,-1000.0,0.00025184,2]
[388397768,1759155045001,-1000.0,0.00025184,2]
[388397770,1759155045011,-151.0,0.00025184,2]
[388397771,1759155045020,-151.0,0.00025184,2]
[388397773,1759155045029,-151.0,0.00025184,2]
[388397774,1759155045039,-151.0,0.00025184,2]
[388397776,1759155045048,-1000.0,0.00025184,2]
[388397777,1759155045060,-1000.0,0.00025184,2]
[388397778,1759155045070,-151.0,0.00025184,2]
[388397780,1759155045079,-1000.0,0.00025184,2]
[388397781,1759155045089,-151.0,0.00025184,2]
[388397783,1759155045098,-1000.0,0.00025184,2]
[388397784,1759155045107,-1000.0,0.00025184,2]
[388397786,1759155045117,-151.0,0.00025184,2]
[388397787,1759155045127,-1000.0,0.00025184,2]
[388397788,1759155045136,-151.0,0.00025184,2]
[388397790,1759155045146,-1000.0,0.00025184,2]
[388397791,1759155045155,-267.85796066,0.00025184,2]
[388397793,1759155045165,-1000.0,0.00025184,2]
[388397794,1759155045174,-1000.0,0.00025184,2]
[388397796,1759155045184,-500.0,0.00025184,2]
[388397797,1759155045193,-500.0,0.00025184,2]
[388397799,1759155045204,-500.0,0.00025184,2]
[388397800,1759155045213,-500.0,0.00025184,2]
[388397801,1759155045223,-500.0,0.00025184,2]
[388397803,1759155045233,-500.0,0.00025184,2]
[388397804,1759155045243,-500.0,0.00025184,2]
[388397806,1759155045253,-449.72,0.00025189,5]
[388397808,1759155045262,-104547.480379,0.00025189,2]
[388397810,1759155045272,-2397.88923405,0.00025189,2]
[388397811,1759155045281,-1005.76211879,0.00025198,2]
[388397813,1759155045290,-503.47,0.00025199,2]
[388397815,1759155045300,-480.0,0.00025199,2]
[388397817,1759155045311,-480.0,0.00025199,2]
[388397818,1759155045320,-480.0,0.00025199,2]
[388397819,1759155045330,-480.0,0.00025199,2]
[388397821,1759155045339,-591.21,0.00025199,2]
[388397822,1759155045350,-480.0,0.00025199,2]
[388397824,1759155045359,-480.0,0.00025199,2]
[388397825,1759155045368,-480.0,0.00025199,2]
[388397827,1759155045377,-1061.51,0.00025199,2]
[388397828,1759155045387,-480.0,0.00025199,2]
[388397829,1759155045396,-657.08,0.00025199,2]
[388397831,1759155045405,-645.76,0.00025199,2]
[388397832,1759155045414,-496.15,0.00025199,2]
[388397834,1759155045423,-480.0,0.00025199,2]
[388397835,1759155045433,-480.0,0.00025199,2]
[388397837,1759155045443,-622.43,0.00025199,2]
[388397838,1759155045452,-480.0,0.00025199,2]
[388397839,1759155045461,-480.0,0.00025199,2]
[388397841,1759155045471,-596.18944259,0.00025199,2]
[388397842,1759155045480,-509.62,0.00025199,2]
[388397843,1759155045489,-480.0,0.00025199,2]
[388397845,1759155045498,-480.0,0.00025199,2]
[388397846,1759155045508,-480.0,0.00025199,2]
[388397847,1759155045517,-672.42,0.00025199,2]
[388397849,1759155045526,-1303.36,0.00025199,2]
[388397850,1759155045536,-480.0,0.00025199,2]
[388397851,1759155045545,-480.0,0.00025199,2]
[388397853,1759155045556,-699.75,0.00025199,2]
[388397854,1759155045565,-480.0,0.00025199,2]
[388397855,1759155045575,-751.6,0.00025199,2]
[388397857,1759155045584,-480.0,0.00025199,2]
[388397858,1759155045593,-480.0,0.00025199,2]
[388397860,1759155045602,-480.0,0.00025199,2]
[388397861,1759155045613,-804.52,0.00025199,2]
[388397862,1759155045623,-636.88,0.00025199,2]
[388397864,1759155045632,-637.37,0.00025199,2]
[388397865,1759155045642,-1710.73,0.00025199,2]
[388397867,1759155045656,-1710.73,0.00025199,2]
[388397868,1759155045666,-1710.73,0.00025199,2]
[388397870,1759155045676,-480.0,0.00025199,2]
[388397871,1759155045686,-480.0,0.00025199,2]
[388397872,1759155045696,-532.4,0.00025199,2]
[388397874,1759155045706,-574.33,0.00025199,2]
[388397875,1759155045716,-480.0,0.00025199,2]
[388397877,1759155045725,-480.0,0.00025199,2]
[388397878,1759155045736,-597.89,0.00025199,2]
[388397880,1759155045745,-480.0,0.00025199,2]
[388397881,1759155045755,-563.85,0.00025199,2]
[388397883,1759155045764,-1594.37,0.00025199,2]
[388397884,1759155045774,-574.32,0.00025199,2]
[388397886,1759155045783,-480.0,0.00025199,2]
[388397887,1759155045793,-700.49,0.00025199,2]
[388397888,1759155045805,-642.0,0.00025199,2]
[388397890,1759155045816,-1136.18,0.00025199,2]
[388397891,1759155045825,-1174.87,0.00025199,2]
[388397893,1759155045835,-480.0,0.00025199,2]
[388397894,1759155045845,-1145.84,0.00025199,2]
[388397896,1759155045854,-480.0,0.00025199,2]
[388397897,1759155045863,-480.0,0.00025199,2]
[388397899,1759155045873,-607.3,0.00025199,2]
[388397900,1759155045882,-480.0,0.00025199,2]
[388397901,1759155045892,-1471.83,0.00025199,2]
[388397903,1759155045901,-480.0,0.00025199,2]
[388397904,1759155045911,-480.0,0.00025199,2]
[388397906,1759155045920,-480.0,0.00025199,2]
[388397907,1759155045930,-532.26,0.00025199,2]
[388397909,1759155045939,-480.0,0.00025199,2]
[388397910,1759155045949,-480.0,0.00025199,2]
[388397912,1759155045958,-698.09,0.00025199,2]
[388397913,1759155045968,-480.0,0.00025199,2]
[388397915,1759155045977,-480.0,0.00025199,2]
[388397916,1759155045987,-480.0,0.00025199,2]
[388397918,1759155045996,-628.96,0.00025199,2]
[388397919,1759155046006,-633.11,0.00025199,2]
[388397920,1759155046016,-480.0,0.00025199,2]
[388397922,1759155046025,-673.92,0.00025199,2]
[388397923,1759155046035,-480.0,0.00025199,2]
[388397925,1759155046047,-1120.66,0.00025199,2]
[388397926,1759155046057,-615.88,0.00025199,2]
[388397928,1759155046066,-563.57,0.00025199,2]
[388397929,1759155046075,-480.0,0.00025199,2]
[388397931,1759155046085,-480.0,0.00025199,2]
[388397932,1759155046094,-480.0,0.00025199,2]
[388397934,1759155046104,-894.5,0.00025199,2]
[388397935,1759155046114,-481.28,0.00025199,2]
[388397937,1759155046124,-470.16693423,0.00025199,2]
[388397938,1759155046134,-480.0,0.00025199,2]
[388397940,1759155046143,-647.61,0.00025199,2]
[388397941,1759155046152,-480.0,0.00025199,2]
[388397943,1759155046161,-757.12,0.00025199,2]
[388397944,1759155046170,-480.0,0.00025199,2]
[388397946,1759155046180,-754.09,0.00025199,2]
[388397947,1759155046189,-480.0,0.00025199,2]
[388397949,1759155046198,-977.92,0.00025199,2]
[388397950,1759155046207,-480.0,0.00025199,2]
[388397952,1759155046216,-480.0,0.00025199,2]
[388397953,1759155046226,-480.0,0.00025199,2]
[388397955,1759155046235,-481.47267589,0.00025199,2]
[388397956,1759155046244,-1214.33,0.00025199,2]
[388397958,1759155046253,-739.68,0.00025199,2]
[388397959,1759155046263,-480.0,0.00025199,2]
[388397961,1759155046272,-480.0,0.00025199,2]
[388397962,1759155046281,-907.37,0.00025199,2]
[388397964,1759155046291,-951.36,0.00025199,2]
[388397965,1759155046300,-2000.0,0.00025199,7]
[388397967,1759155046311,-2000.0,0.00025199,7]
[388397969,1759155046322,-661.98494194,0.00025199,7]
[388397970,1759155046334,-480.0,0.00025199,2]
[388397972,1759155046344,-480.0,0.00025199,2]
[388397973,1759155046354,-480.0,0.00025199,2]
[388397975,1759155046364,-480.0,0.00025199,2]
[388397977,1759155046374,-480.0,0.00025199,2]
[388397978,1759155046384,-480.0,0.00025199,2]
[388397980,1759155046394,-3876.18,0.00025199,2]
[388397981,1759155046404,-644.76,0.00025199,2]
[388397983,1759155046414,-1195.34,0.00025199,2]
[388397984,1759155046423,-314.32028943,0.00025199,2]
[388397986,1759155046432,-480.0,0.00025199,2]
[388397987,1759155046441,-480.0,0.00025199,2]
[388397989,1759155046451,-2596.59,0.00025199,2]
[388397990,1759155046460,-557.61,0.00025199,2]
[388397992,1759155046469,-480.0,0.00025199,2]
[388397993,1759155046478,-480.0,0.00025199,2]
[388397995,1759155046488,-608.11,0.00025199,2]
[388397996,1759155046498,-480.0,0.00025199,2]
[388397998,1759155046507,-480.0,0.00025199,2]
[388397999,1759155046516,-480.0,0.00025199,2]
[388398001,1759155046526,-2017.82,0.00025199,2]
[388398003,1759155046535,-480.0,0.00025199,2]
[388398004,1759155046544,-571.03,0.00025199,2]
[388398006,1759155046553,-1378.09,0.00025199,2]
[388398007,1759155046562,-480.0,0.00025199,2]
[388398009,1759155046571,-480.0,0.00025199,2]
[388398010,1759155046580,-480.0,0.00025199,2]
[388398012,1759155046589,-480.0,0.00025199,2]
[388398013,1759155046598,-859.65,0.00025199,2]
[388398015,1759155046607,-864.52,0.00025199,2]
[388398016,1759155046616,-480.0,0.00025199,2]
[388398018,1759155046625,-300.89896377,0.00025199,2]
[388398019,1759155046635,-853.03,0.00025199,2]
[388398021,1759155046644,-480.0,0.00025199,2]
[388398022,1759155046654,-1665.94,0.00025199,2]
[388398024,1759155046667,-480.0,0.00025199,2]
[388398026,1759155046677,-1381.42,0.00025199,2]
[388398027,1759155046686,-480.0,0.00025199,2]
[388398029,1759155046695,-1180.61,0.00025199,2]
[388398030,1759155046704,-736.72,0.00025199,2]
[388398032,1759155046713,-480.0,0.00025199,2]
[388398033,1759155046722,-1398.11,0.00025199,2]
[388398035,1759155046732,-480.0,0.00025199,2]
[388398036,1759155046741,-480.0,0.00025199,2]
[388398038,1759155046750,-2500.91,0.00025199,2]
[388398039,1759155046759,-480.0,0.00025199,2]
[388398041,1759155046768,-6090.17,0.00025199,2]
[388398043,1759155046779,-480.0,0.00025199,2]
[388398044,1759155046788,-480.0,0.00025199,2]
[388398046,1759155046798,-905.4,0.00025199,2]
[388398047,1759155046809,-566.75,0.00025199,2]
[388398049,1759155046819,-2827.27,0.00025199,2]
[388398051,1759155046829,-884.54,0.00025199,2]
[388398052,1759155046838,-480.0,0.00025199,2]
[388398054,1759155046847,-650.03,0.00025199,2]
[388398055,1759155046857,-480.0,0.00025199,2]
[388398057,1759155046866,-480.0,0.00025199,2]
[388398058,1759155046875,-682.68,0.00025199,2]
[388398060,1759155046885,-480.0,0.00025199,2]
[388398061,1759155046894,-2725.97,0.00025199,2]
[388398063,1759155046904,-480.0,0.00025199,2]
[388398064,1759155046914,-1456.79,0.00025199,2]
[388398066,1759155046923,-480.0,0.00025199,2]
[388398067,1759155046932,-683.71,0.00025199,2]
[388398069,1759155046941,-666.42,0.00025199,2]
[388398071,1759155046951,-480.0,0.00025199,2]
[388398072,1759155046960,-549.26,0.00025199,2]
[388398074,1759155046969,-539.81,0.00025199,2]
[388398075,1759155046978,-557.35,0.00025199,2]
[388398077,1759155046988,-480.0,0.00025199,2]
[388398078,1759155046997,-788.69,0.00025199,2]
[388398080,1759155047007,-790.55,0.00025199,2]
[388398081,1759155047016,-480.0,0.00025199,2]
[388398083,1759155047026,-6351.3,0.00025199,2]
[388398084,1759155047035,-480.0,0.00025199,2]
[388398086,1759155047045,-848.47,0.00025199,2]
[388398087,1759155047055,-480.0,0.00025199,2]
[388398089,1759155047066,-480.0,0.00025199,2]
[388398091,1759155047075,-1208.38,0.00025199,2]
[388398092,1759155047085,-480.0,0.00025199,2]
[388398094,1759155047094,-480.0,0.00025199,2]
[388398095,1759155047103,-1106.13,0.00025199,2]
[388398097,1759155047113,-480.0,0.00025199,2]
[388398098,1759155047122,-861.53,0.00025199,2]
[388398100,1759155047132,-835.99,0.00025199,2]
[388398102,1759155047141,-480.0,0.00025199,2]
[388398103,1759155047150,-3347.4,0.00025199,2]
[388398105,1759155047159,-480.0,0.00025199,2]
[388398106,1759155047168,-480.0,0.00025199,2]
[388398108,1759155047177,-944.22,0.00025199,2]
[388398109,1759155047186,-480.0,0.00025199,2]
[388398111,1759155047195,-2115.0,0.00025199,2]
[388398112,1759155047204,-480.0,0.00025199,2]
[388398114,1759155047213,-651.81,0.00025199,2]
[388398115,1759155047222,-1498.82,0.00025199,2]
[388398117,1759155047232,-5910.42,0.00025199,2]
[388398118,1759155047240,-480.0,0.00025199,2]
[388398120,1759155047249,-480.0,0.00025199,2]
[388398121,1759155047258,-480.0,0.00025199,2]
[388398123,1759155047267,-480.0,0.00025199,2]
[388398125,1759155047277,-151.0,0.000252,10]
[388398126,1759155047286,-151.0,0.000252,17]
[388398128,1759155047295,-584.6894659,0.000252,2]
[388398129,1759155047304,-4980.721116,0.00025201,2]
[388398131,1759155047313,-400.0,0.00025204,2]
[388398132,1759155047322,-394.0,0.00025204,2]
[388398134,1759155047332,-799.29641135,0.00025204,2]
[388398135,1759155047341,-500.0,0.00025205,2]
[388398137,1759155047351,-34849.1601264,0.00025214,2]
[388398138,1759155047360,-799.29641135,0.00025214,2]
[388398140,1759155047369,-799.29641135,0.00025215,2]
[388398142,1759155047378,-1710.73,0.00025222,2]
[388398143,1759155047387,-1710.73,0.00025223,2]
[388398145,1759155047396,-1710.73,0.00025223,2]
[388398146,1759155047405,-214.41420306,0.00025224,2]
[388398148,1759155047414,-480.0,0.00025224,2]